Cogmind - Beta 13 @@@ ROGUE MODE // 2024.04.14 @ 11:31:57 Player: Willzfaz Result: Destroyed by G-34 Mercenary with Small Laser Performance ------------- Evolutions (0) 0 Regions Visited (1) 200 Robots Destroyed (10) 50 Value Destroyed (315) 315 Prototype IDs (0) 0 Alien Tech Used (0) 0 Bonus (0) 0 TOTAL SCORE: 565 Bonus ------- None Cogmind --------- Core Integrity 0/250 Matter 190/300 Energy 96/100 System Corruption 0% Temperature Warning (310) Movement Core (100) Ox1 Location -10/Materials Parts ------- > --- POWER (1) -------- (None) > --- PROPULSION (2) --- (None) > --- UTILITY (2) ------ Structural Scanner Propulsion Shielding > --- WEAPON (2) ------- Beam Cannon > --- INVENTORY (5) ---- Light Ion Engine Small Matter Pod (50) Medium Matter Pod (100) Medium Laser Peak State ------------ > --- POWER ------------ Light Nuclear Core > --- PROPULSION ------- Wheel Flight Unit > --- UTILITY ---------- Structural Scanner Propulsion Shielding > --- WEAPON ----------- Small Laser Small Laser > --- INVENTORY -------- Light Ion Engine Small Matter Pod Medium Matter Pod Light Assault Rifle [Rating: 9] Favorites ----------- Power Light Ion Engine Engine Light Ion Engine Power Core Light Nuclear Core Propulsion Wheel Wheel Wheel Flight Unit Flight Unit Utility Propulsion Shielding Device Structural Scanner Protection Propulsion Shielding Weapon Small Laser Energy Gun Small Laser Energy Cannon Beam Cannon Ballistic Gun Light Assault Rifle Build | -11 -10 ------- Run | Yrd Mat Slots Evolved . | . . Power . | . . Propulsion . | . . Utility . | . . Weapon . | . . Parts Attached 16 | 5 11 Power 4 | 1 3 Engine 2 | 1 1 Core 2 | . 2 Reactor . | . . Propulsion 3 | 2 1 Treads . | . . Leg . | . . Wheel 2 | 2 . Hover . | . . Flight 1 | . 1 Utility 2 | . 2 Device 1 | . 1 Storage . | . . Processor . | . . Hackware . | . . Protection 1 | . 1 Artifact . | . . Weapon 7 | 2 5 Energy Gun 3 | . 3 Energy Cannon 2 | . 2 Ballistic Gun 2 | 2 . Ballistic Cannon . | . . Launcher . | . . Special Weapon . | . . Impact Weapon . | . . Slashing Weapon . | . . Piercing Weapon . | . . Special Melee Weapon . | . . Unidentified Prototypes . | . . Parts Lost 7 | . 7 Power 1 | . 1 Propulsion 3 | . 3 Utility . | . . Weapon 3 | . 3 Highest Loss Streak 5 | . 5 To Critical Strikes . | . . Average Slot Usage (%) 74 | . 74 Engine 7 | . 7 Core 6 | . 6 Wheel 20 | . 20 Flight 2 | . 2 Device 4 | . 4 Protection 6 | . 6 Energy Gun 12 | . 12 Energy Cannon 2 | . 2 Ballistic Gun 12 | . 12 Naked Turns . | . . Heaviest Build 13 | 6 13 Greatest Support 20 | 20 20 Greatest Overweight (x) 4 | . 4 Average Overweight (x) . | . . Largest Inventory Capacity 5 | 5 5 Average Capacity 5 | 5 5 Most Carried 5 | 2 5 Average Carried 2 | . 3 Final Capacity 5 | 5 5 Final Carried 4 | 1 4 Class Distribution -------------------- 100% | Mutant Dominant Class ---------------- Mutant | -10/Materials Resources | -11 -10 ----------- Run | Yrd Mat Matter Collected 537 | 315 222 Remotely . | . . Salvage Created 385 | 52 333 Parts 19 | 4 15 Haulers Intercepted . | . . Recyclers Shooed 1 | . 1 Parts Field Recycled . | . . Retrieved Matter . | . . Parts Self-Destructed . | . . Prevented . | . . Kills | -11 -10 ------- Run | Yrd Mat Combat Hostiles Destroyed 8 | 1 7 Guns 7 | 1 6 Cannons 1 | . 1 Classes Destroyed 3 | 2 1 Worker 1 | 1 . Watcher 1 | . 1 Grunt 8 | 1 7 Best Kill Streak 2 | 1 2 Combat Bots Only 2 | 1 2 Max Kills in Single Turn 1 | 1 1 Gunslinging . | . . Exploded . | . . Melee . | . . Uniques/NPCs Destroyed . | . . Combat | -11 -10 -------- Run | Yrd Mat Hostile Shots Fired 128 | 7 121 Missed 33 | 1 32 Damage Taken 939 | 69 870 Core 252 | 48 204 Absorbed by Shields . | . . Redirected to Shielding 10 | . 10 Regen/Repaired (Parts) 49 | . 49 Core Remaining (%) 80 | 80 . Volleys Fired 53 | 8 45 Largest 2 | 2 2 Hottest 120 | 40 120 Shots Fired 106 | 16 90 Gun 92 | 16 76 Cannon 14 | . 14 Launcher . | . . Special . | . . Kinetic 72 | 16 56 Thermal 34 | . 34 Explosive . | . . Electromagnetic . | . . Robot Hit Streak 10 | 10 8 Robot Miss Streak 3 | 1 3 Penetration Max . | . . Secondary Targets . | . . Shots Hit Robots 59 | 13 46 Core Hits 21 | 3 18 Critical Kills . | . . Critical Parts Destroyed . | . . Critical Strikes . | . . Melee Attacks . | . . Impact . | . . Slashing . | . . Piercing . | . . Sneak Attacks . | . . Combat Hostiles . | . . Follow-up Attacks . | . . Damage Inflicted 649 | 135 514 Guns 525 | 135 390 Cannons 120 | . 120 Explosions . | . . Melee . | . . Ramming 4 | . 4 Kinetic 469 | 135 334 Thermal 176 | . 176 Explosive . | . . Electromagnetic . | . . Impact . | . . Slashing . | . . Piercing . | . . Highest Corruption . | . . Average Corruption . | . . Corruption Purged . | . . Corruption Blocked . | . . Overload Shots . | . . Overflow Damage . | . . Projectiles . | . . Explosions . | . . Melee . | . . Knockbacks . | . . Impact . | . . Kinetic . | . . Secondary . | . . Self-Inflicted Damage 2 | . 2 Shots . | . . Rammed 1 | . 1 Targets Rammed 1 | . 1 Kicked . | . . Crushed . | . . Highest Temperature 486 | 12 486 Average Temperature 107 | 8 114 Received Heat Transfer 315 | 36 279 Effects 2 | . 2 Matter Decay 2 | . 2 Siege Activations . | . . Robots Corrupted . | . . Combat Hostiles . | . . Parts Fried . | . . Impact Corruptions . | . . Robots Melted . | . . Combat Hostiles . | . . Parts Melted . | . . Heat Transferred 396 | . 396 Parts Sabotaged . | . . Parts Stolen . | . . Parts Stripped . | . . Power Chain Reactions . | . . Alert | -11 -10 ------- Run | Yrd Mat Peak Influence 273 | 25 273 Initial 16 | . 16 Average 125 | 3 148 Maximum Alert Level 1 | . 1 Low Security (%) 69 | 100 63 Level 1 30 | . 36 Level 2 . | . . Level 3 . | . . Level 4 . | . . Level 5 . | . . High Security . | . . Max Security . | . . Squads Dispatched 2 | . 2 Investigation 1 | . 1 Extermination . | . . Reinforcement 1 | . 1 Assault . | . . Garrison . | . . Intercept . | . . Searches Triggered . | . . Construction Impeded . | . . Haulers Reinforced . | . . Active Scanning Responses . | . . Cargo Convoy Interrupts . | . . Stealth | -11 -10 --------- Run | Yrd Mat Distress Signals 1 | . 1 Communications Jammed . | . . Distress Signals . | . . Times Spotted 21 | 1 20 Peak Tracking Total 6 | 1 6 Tactical Retreats 3 | . 3 Traps | -11 -10 ------- Run | Yrd Mat Traps Triggered 1 | . 1 Indirectly . | . . Trap Hack Attempts . | . . Triggered . | . . Disarmed . | . . Reprogrammed . | . . Reused . | . . Traps Extracted . | . . Installed . | . . Triggered . | . . Machines | -11 -10 ---------- Run | Yrd Mat Machines Disabled . | . . Max in Single Turn . | . . Machines Repaired . | . . Machines Dismantled . | . . Machines Sabotaged . | . . Overloaded Fab Kills . | . . Hacking | -11 -10 --------- Run | Yrd Mat Machines Accessed 1 | . 1 Terminals . | . . Fabricators . | . . Repair Stations 1 | . 1 Recycling Units . | . . Scanalyzers . | . . Garrison Access . | . . Total Hacks 3 | . 3 Successful 2 | . 2 Failed 1 | . 1 Catastrophic . | . . Database Lockouts . | . . Manual . | . . Terminals . | . . Fabricators . | . . Repair Stations 3 | . 3 Recycling Units . | . . Scanalyzers . | . . Garrison Access . | . . Terminal Hacks . | . . Fabricator Hacks . | . . Repair Station Hacks 2 | . 2 Scan Component 1 | . 1 Repair 1 | . 1 Recycling Unit Hacks . | . . Scanalyzer . | . . Garrison Access Hacks . | . . Unauthorized Hacks . | . . Terminals . | . . Fabricators . | . . Repair Stations . | . . Recycling Units . | . . Scanalyzers . | . . Garrison Access . | . . Data Cores Recovered . | . . Used . | . . Hacking Detections 1 | . 1 Full Trace Events 1 | . 1 Feedback Events . | . . Feedback Blocked . | . . Robot Schematics Acquired . | . . Robots Built . | . . Authchips . | . . Time . | . . Total Robot Build Rating . | . . Part Schematics Acquired . | . . Parts Built . | . . Authchips . | . . Time . | . . Total Part Build Rating . | . . Parts Repaired 1 | . 1 Time 19 | . 19 Parts Recycled . | . . Recycled Matter . | . . Retrieved Matter . | . . Retrieved Components . | . . Parts Scanalyzed . | . . Part Schematics Acquired . | . . Parts Damaged . | . . Bothacking | -11 -10 ------------ Run | Yrd Mat Used RIF Installer . | . . Robots Hacked . | . . Non-combat . | . . Combat . | . . Robot Hacks Applied . | . . Relay Couplers Released . | . . Fabnet Peak Effective % . | . . Robots Rewired . | . . Allies Hacked . | . . Hacks Repelled . | . . Allies | -11 -10 -------- Run | Yrd Mat Total Allies . | . . Largest Group . | . . Highest-Rated Group . | . . Highest-Rated Ally . | . . Total Orders . | . . Ally Attacks . | . . Total Damage . | . . Kills . | . . Allies Corrupted . | . . Allies Melted . | . . Intel | -11 -10 ------- Run | Yrd Mat Robot Analysis Total . | . . Derelict Logs Recovered . | . . Drone Launches . | . . Drone Recoveries . | . . Exploration | -11 -10 ------------- Run | Yrd Mat Turns Passed 587 | 93 494 Spaces Moved 425 | 87 338 Core 58 | 31 27 Treads . | . . Legs . | . . Wheels 367 | 56 311 Hover . | . . Flight . | . . Fastest Speed 50 | 50 80 Average Speed 82 | 69 86 Slowest Speed 250 | 80 250 Overloaded Moves . | . . Propulsion Burnouts . | . . Robots Hopped . | . . Cave-ins Triggered . | . . Exploration Rate (%) 32 | 9 55 Regions Visited 1 Branch Regions . Pre-discovered Areas . | . . Known Exits Taken . | . . Unknown Exits Taken 1 | 1 . Scrap Searched . | . . Spaces Dug . | . . Terrain Destroyed . | . . Melee . | . . Projectile . | . . AOE . | . . Terrain Rammed . | . . Walls Destroyed . | . . Machines Disabled . | . . Actions | -11 -10 --------- Run | Yrd Mat Total 560 | 105 455 Wait 45 | . 45 Move 424 | 86 338 Hop . | . . Pick Up 18 | 6 12 Fast Attach . | . . Attach 10 | 5 5 Detach . | . . Swap 6 | . 6 Drop 3 | . 3 Fire 53 | 8 45 Melee . | . . Ram 1 | . 1 Kick . | . . Crush . | . . Escape Stasis . | . . Rewire . | . . Trap . | . . Miscellaneous . | . . Route ------- -11/Scrapyard -10/Materials (discovered 3 exits: [*Mat x2] / [*Min]) History --------- Turn | Location | Event 2 | -11/Scrapyard | Met Revision 17 70 | -11/Scrapyard | Discovered new exit (range 8) 94 | -11/Scrapyard | Entered Materials 236 | -10/Materials | Discovered new exit (range 14) 342 | -10/Materials | Build established: Mutant 389 | -10/Materials | Discovered new exit (range 9) 464 | -10/Materials | Repaired Lgt. Nuclear Core 492 | -10/Materials | Discovered new exit (range 16) 574 | -10/Materials | Core integrity fell below 50% 584 | -10/Materials | Core integrity fell below 20% 588 | -10/Materials | Destroyed by G-34 Mercenary with Small Laser Last Messages --------------- 00544_ R-06 Scavenger collects Lgt. Assault Rifle. 00545_ Dropped Sml. Laser. 00547_ R-06 Scavenger collects Sml. Laser. 00550_ Acquired Med. Laser. 00551_ R-06 Scavenger collects Sml. Laser. 00554_ Acquired Med. Laser. 00563_ Wheel destroyed. 00567_ G-47 Trooper destroyed. 00569_ K-01 Serf collects debris. 00570_ Beam Cannon destroyed. 00571_ Lgt. Nuclear Core destroyed. 00573_ K-01 Serf collects debris. 00575_ Overheating: Matter decay (-23). 00576_ K-01 Serf collects debris. 00579_ Flight Unit destroyed. 00581_ Overheating: Matter decay (-32). 00582_ R-06 Scavenger collects Aluminum Leg. 00588_ Med. Laser destroyed. Map ----- +----------------------------------------------------+ | ?????????????????????????????????### """ # | | ??????????????????????????####???### """ ""R" # | | ??????????????????????????#########+ """ "" " # | | ??????????????????????????## ####### """ # | | ?????????????????????????### ##### # | | ??????????????????########### ###### # | | ??????????????????######### ##########+####### | | ??????????????????## #### | | ??????????????????## < ##?? | | ??????????????????## ##?? | | ??????????????????######### ###+###### ##?? | | ??????????????????########## #### ### ##?? | | ?????????????????????????### #### ??????## ##?? | | ??????????????????????????## ##?????????## ##?# | | ??????????????????????????## ##?????????## ## | | ??????????????????????????## ##?????????## ##? | | ??????????????????????????## ##?????????## ##? | | ??????????????????????????## ##??????????# ##? | | ??????????????????????????## ##??????????# ##? | | ??????????????????????????## ##??????????# ##?# | | ?????????#### ######### ##??????????# ##?# | | ?????????#######+########### ##??????????# #### | | ???????? # ##??????????# ### | | ???????? # ^ ##??????????# | | ???????? #" ^ # ??????????# ^ | | ?????????????""" """ @ # ??????????# ^ | | ???????????????" """ [] u# ??????????#^ || | | ???????????????? """ []] g% ?????????# || | | ??????????????? rk#[ ??????# || | | ????????????? s u# ????# | | ???????????? ### ## ?? ??# | | ????????????? s s ### w## ??? #?## #### | | ???????????? ??## ##???########## #??? | | ???????????? ??## u##???#"""""""## #??? | | ???????????? ##+####??## ##???#" |"! "## #??? | | ????????????? # ??#! #####" "## #??? | | ????????????? # ???????? #??? | | ????????????? # ???????? < #??? | | ???????????????????????? #??? | | ???????????????????????# ##### ### ##?## | | ???????????????????????########??#########?#+#??# | | ???????????????????????#######??????????????????# | | ????????????????????????????????????????????????# | | ??????????????????????????????????????????????### | | ?????????????????????????????????????????????+ + | | ?????????????????????????????????????????????# ## | | ?????????????????????????????????????????????# ### | | ?????????????????????????????????????????????# #?? | | ?????????????????????????????????????????????# #?? | | ?????????????????????????????????????????????# #?# | +----------------------------------------------------+ Best States ------------- Heat Dissipation 25 Energy Generation 14 Energy Capacity 160 Matter Stores 300 Matter Capacity 300 Sight Range 16 Terrain Scan Density 10 Propulsion Shielding 33 Evasion (%) 50 Item Schematics ----------------- None Robot Schematics ------------------ None Fabricated ------------ Nothing Alien Tech Used ----------------- None Achievements -------------- Crack Shot Challenges ------------ None Game ------ Seed HardcellGodStreamer Manual? 0 Play Time 00:08:52 Cumulative 0.9 hours Start 2024.04.14 @ 11:24:37 End 2024.04.14 @ 11:31:57 Sessions 1 Manual Loads 0 Difficulty Rogue Special Mode None Game No. 3 Rogue 3 Adventurer 0 Explorer 0 Win Type - Total 0 Types 0/0/0/0/0/0/0/0/0 Lore% 0 Gallery% 3 Achievement% 3 Wizard Run 0 Options --------- Layout 1 ASCII 0 Keyboard 0 Movement Arrows Keybinds 0 Fullscreen 1 Font 24/Smallcaps Map View 50x35 Zoom Use 0% Tactical HUD 1 Map Filters NONE Filters NONE Steam 1 RUN: 7ed5c5d0-e46c-4159-bf6f-47ab59ee2626